[Event "Szczawno Festival IM 2018"]
[Site "Szczawno"]
[Date "2018.12.17"]
[Round "4"]
[White "Tejaswini, Sagar"]
[Black "Karpus, Michal"]
[Result "0-1"]
[ECO "C92"]
[WhiteElo "2177"]
[BlackElo "2355"]
[Annotator "NA"]
[PlyCount "100"]
[EventDate "2018.12.14"]
[EventType "tourn"]
[EventCountry "POL"]
[SourceTitle "playchess.com"]
[Source "ChessBase"]
[SourceQuality "1"]
[TimeControl "40/5400+30:900+30"]

1. e4 {[%emt 0:00:00]} e5 {[%emt 0:00:00]} 2. Nf3 {[%emt 0:00:00]} Nc6 {[%emt 0:00:00]} 3. Bb5 {[%emt 0:00:00]} a6 {[%emt 0:00:01]} 4. Ba4 {[%emt 0:00:00]} Nf6 {[%emt 0:00:15]} 5. O-O {[%emt 0:00:10]} Be7 {[%emt 0:00:09]} 6. Re1 {[%emt 0:00:05]} b5 {[%emt 0:00:12]} 7. Bb3 {[%emt 0:00:12]} d6 {[%emt 0:00:15]} 8. c3 {[%emt 0:00:24]} O-O {[%emt 0:00:18]} 9. h3 {[%emt 0:00:21]} Nd7 {[%emt 0:00:19]} 10. d4 {[%emt 0:01:32]} Bf6 {[%emt 0:00:29]} 11. Bc2 {[%emt 0:07:00]} Bb7 {[%emt 0:01:19]} 12. a3 {[%emt 0:04:57]} Nb6 {[%emt 0:02:58]} 13. b3 {[%emt 0:04:08]} Re8 {[%emt 0:05:02]} 14. Bb2 {[%emt 0:03:19]} Qd7 {[%emt 0:04:18]} 15. Nbd2 {[%emt 0:02:01]} Rad8 $14 {[%emt 0:10:58]} 16. Nf1 {[%emt 0:06:57]} d5 {[%emt 0:11:48]} 17. exd5 {[%emt 0:11:24]} Qxd5 {[%emt 0:04:32]} 18. dxe5 {[%emt 0:10:42]} Nxe5 {[%emt 0:02:37]} 19. Qxd5 {[%emt 0:00:26]} Nxd5 {[%emt 0:05:06]} 20. Nxe5 {[%emt 0:02:14]} Bxe5 {[%emt 0:01:15]} 21. Be4 {[%emt 0:01:10]} Bf6 {[%emt 0:07:10]} 22. Rad1 {[%emt 0:08:02]} Kf8 {[%emt 0:01:04]} 23. Bf3 {[%emt 0:08:46]} Rxe1 {[%emt 0:03:42]} 24. Rxe1 {[%emt 0:00:44]} Bc8 {[%emt 0:07:41]} 25. Rd1 {[%emt 0:03:25]} Be6 {[%emt 0:00:41]} 26. Ba1 {[%emt 0:04:18]} Nf4 {[%emt 0:10:25]} 27. Rxd8+ {[%emt 0:02:48]} Bxd8 {[%emt 0:00:09]} 28. Nd2 {[%emt 0:02:49]} Bf6 {[%emt 0:02:20]} 29. b4 {[%emt 0:01:25]} Bd5 {[%emt 0:04:18]} 30. Bxd5 {[%emt 0:01:40]} Nxd5 {[%emt 0:00:12]} 31. Ne4 {[%emt 0:00:22]} Ke7 {[%emt 0:01:15]} 32. Nxf6 {[%emt 0:02:39]} Nxf6 {[%emt 0:00:48]} 33. Kf1 {[%emt 0:00:17]} Ke6 {[%emt 0:01:18]} 34. Ke2 {[%emt 0:00:06]} Kd5 {[%emt 0:00:30]} 35. Kd3 {[%emt 0:00:34]} Nd7 {[%emt 0:04:39]} 36. f4 {[%emt 0:00:56]} f5 {[%emt 0:00:52]} 37. Bb2 {[%emt 0:01:50]} Nb6 {[%emt 0:00:49]} 38. Bc1 {[%emt 0:00:53]} Nc4 {[%emt 0:00:08]} 39. g4 {[%emt 0:00:44]} g6 {[%emt 0:00:26]} 40. g5 {[%emt 0:00:00]} c6 {[%emt 0:00:00]} 41. h4 {[%emt 0:01:15]} c5 {[%emt 0:06:06]} 42. Be3 {[%emt 0:05:07]} cxb4 {[%emt 0:01:00]} 43. axb4 {[%emt 0:00:21]} Nb2+ {[%emt 0:00:13]} 44. Kc2 {[%emt 0:01:32]} Ke4 {[%emt 0:00:23]} 45. Bb6 {[%emt 0:01:26]} Nd3 {[%emt 0:00:36]} 46. Kb3 {[%emt 0:01:53]} Nxf4 {[%emt 0:00:44]} 47. c4 {[%emt 0:00:03]} Ne6 {[%emt 0:00:22]} 48. c5 {[%emt 0:00:42]} Nd4+ {[%emt 0:00:08]} 49. Kc3 {[%emt 0:00:02]} Nc6 {[%emt 0:00:15]} 50. Bc7 {[%emt 0:01:27]} Ke3 {[%emt 0:00:10] Kd4+} 0-1

[Event "Szczawno Festival IM 2018"]
[Site "Szczawno"]
[Date "2018.12.18"]
[Round "5"]
[White "Karpus, Michal"]
[Black "Krzywda, Andrzej"]
[Result "1-0"]
[ECO "B17"]
[WhiteElo "2355"]
[BlackElo "2178"]
[Annotator "NA"]
[PlyCount "78"]
[EventDate "2018.12.14"]
[EventType "tourn"]
[EventCountry "POL"]
[SourceTitle "playchess.com"]
[Source "ChessBase"]
[SourceQuality "1"]
[TimeControl "40/5400+30:900+30"]

1. e4 {[%emt 0:00:00]} c6 {[%emt 0:00:00]} 2. d4 {[%emt 0:00:00]} d5 {[%emt 0:00:00]} 3. Nc3 {[%emt 0:00:00]} dxe4 {[%emt 0:00:00]} 4. Nxe4 {[%emt 0:00:07]} Nd7 {[%emt 0:00:16]} 5. Ng5 {[%emt 0:00:45]} Ngf6 {[%emt 0:00:28]} 6. Bd3 {[%emt 0:00:48]} e6 {[%emt 0:00:33]} 7. Qe2 {[%emt 0:01:07]} Bd6 {[%emt 0:00:53]} 8. N1f3 {[%emt 0:00:49]} h6 {[%emt 0:01:04]} 9. Ne4 {[%emt 0:00:13]} Nxe4 {[%emt 0:00:11]} 10. Qxe4 {[%emt 0:00:15]} Qc7 {[%emt 0:01:02]} 11. O-O {[%emt 0:03:04]} b6 {[%emt 0:00:38]} 12. Qg4 {[%emt 0:01:23]} Kf8 {[%emt 0:03:16]} 13. Re1 {[%emt 0:06:39]} Bb7 {[%emt 0:03:29]} 14. b3 {[%emt 0:03:21]} Rd8 {[%emt 0:05:03]} 15. Bb2 {[%emt 0:01:30]} Nf6 {[%emt 0:00:38] LiveBook: 5 Games} 16. Qh4 $11 {[%emt 0:01:04]} Nd5 {[%emt 0:15:21]} 17. Ne5 {[%emt 0:14:00]} Qe7 {[%emt 0:11:05]} 18. Qg3 {[%emt 0:03:37]} h5 {[%emt 0:07:56]} 19. c4 {[%emt 0:02:22]} Nb4 {[%emt 0:05:24]} 20. Be4 {[%emt 0:03:51]} h4 {[%emt 0:09:49]} 21. Qf3 {[%emt 0:02:49]} Qf6 {[%emt 0:01:59]} 22. Qc3 {[%emt 0:10:54]} h3 {[%emt 0:07:14]} 23. g3 {[%emt 0:02:58]} Bxe5 {[%emt 0:09:03]} 24. dxe5 {[%emt 0:00:36]} Qe7 {[%emt 0:00:07]} 25. Qf3 {[%emt 0:01:08]} Qc7 {[%emt 0:06:47]} 26. a3 {[%emt 0:02:32]} Na6 {[%emt 0:00:07]} 27. b4 {[%emt 0:01:14]} Bc8 {[%emt 0:03:52]} 28. Bxc6 {[%emt 0:03:12]} Nb8 {[%emt 0:00:09]} 29. Be4 {[%emt 0:00:42]} Nd7 {[%emt 0:00:26]} 30. Rad1 {[%emt 0:04:34]} Ke7 {[%emt 0:00:36]} 31. Qf4 {[%emt 0:02:52]} Rdg8 {[%emt 0:03:44]} 32. Qg5+ {[%emt 0:01:24]} Kf8 {[%emt 0:02:35]} 33. Rd6 {[%emt 0:01:48]} f6 {[%emt 0:01:27]} 34. exf6 {[%emt 0:07:58]} Nxf6 {[%emt 0:00:27]} 35. Qf4 {[%emt 0:08:41]} Kf7 {[%emt 0:00:01]} 36. Bd5 {[%emt 0:00:43]} Qe7 {[%emt 0:01:39]} 37. Rdxe6 {[%emt 0:01:41]} Bxe6 {[%emt 0:00:28]} 38. Rxe6 {[%emt 0:00:08]} Qxe6 {[%emt 0:00:38]} 39. Qc7+ {[%emt 0:00:15]} Kg6 1-0

[Event "Szczawno Festival IM 2018"]
[Site "Szczawno"]
[Date "2018.12.18"]
[Round "5"]
[White "Pacan-Milej, Kosma"]
[Black "Tejaswini, Sagar"]
[Result "1/2-1/2"]
[ECO "D70"]
[WhiteElo "2334"]
[BlackElo "2177"]
[Annotator "NA"]
[PlyCount "57"]
[EventDate "2018.12.14"]
[EventType "tourn"]
[EventCountry "POL"]
[SourceTitle "playchess.com"]
[Source "ChessBase"]
[SourceQuality "1"]
[TimeControl "40/5400+30:900+30"]

1. d4 {[%emt 0:00:00]} Nf6 {[%emt 0:00:39]} 2. c4 {[%emt 0:00:00]} g6 {[%emt 0:00:02]} 3. f3 {[%emt 0:00:00]} d5 {[%emt 0:00:08]} 4. cxd5 {[%emt 0:00:06]} Nxd5 {[%emt 0:00:06]} 5. e4 {[%emt 0:00:05]} Nb6 {[%emt 0:00:07]} 6. Nc3 {[%emt 0:00:13]} Bg7 {[%emt 0:00:15]} 7. Be3 {[%emt 0:00:07]} O-O {[%emt 0:00:23]} 8. Qd2 {[%emt 0:00:09]} Nc6 {[%emt 0:00:18]} 9. O-O-O {[%emt 0:00:55]} Qd6 {[%emt 0:00:32]} 10. Kb1 {[%emt 0:02:00]} Rd8 {[%emt 0:00:51]} 11. Nb5 {[%emt 0:00:36]} Qd7 {[%emt 0:00:35]} 12. d5 {[%emt 0:01:51]} a6 {[%emt 0:09:50]} 13. Nc3 $14 {[%emt 0:00:16] LiveBook: 66 Games} Na7 {[%emt 0:05:23]} 14. Bh6 {[%emt 0:23:07]} Bh8 {[%emt 0:01:36]} 15. h4 {[%emt 0:05:02]} Nb5 {[%emt 0:10:41]} 16. Nge2 {[%emt 0:10:51]} Nc4 {[%emt 0:07:29]} 17. Qc1 {[%emt 0:03:47]} Qd6 {[%emt 0:04:20]} 18. a4 {[%emt 0:15:09]} Nxc3+ {[%emt 0:07:40]} 19. Nxc3 {[%emt 0:00:08]} Qb4 {[%emt 0:00:47]} 20. Bxc4 {[%emt 0:02:02]} Qxc4 {[%emt 0:00:04]} 21. h5 {[%emt 0:00:33]} b5 {[%emt 0:09:13]} 22. hxg6 {[%emt 0:00:49]} fxg6 {[%emt 0:04:01]} 23. a5 {[%emt 0:14:56]} Bxc3 {[%emt 0:08:54]} 24. Qxc3 {[%emt 0:00:12]} Qxc3 {[%emt 0:00:10]} 25. bxc3 {[%emt 0:00:03]} e6 {[%emt 0:01:02]} 26. Bf4 {[%emt 0:06:08]} exd5 {[%emt 0:01:32]} 27. exd5 {[%emt 0:00:32]} Rd7 {[%emt 0:02:24]} 28. Rhe1 {[%emt 0:03:46]} Bb7 {[%emt 0:00:09]} 29. d6 {[%emt 0:02:04]} 1/2-1/2

[Event "Szczawno Festival IM 2018"]
[Site "Szczawno"]
[Date "2018.12.18"]
[Round "5"]
[White "Chylewski, Patryk"]
[Black "Sergeev, Vladimir"]
[Result "1/2-1/2"]
[ECO "E91"]
[WhiteElo "2268"]
[BlackElo "2402"]
[Annotator "ChessBase"]
[PlyCount "229"]
[EventDate "2018.12.14"]
[EventType "tourn"]
[EventCountry "POL"]
[SourceTitle "playchess.com"]
[Source "ChessBase"]
[SourceQuality "1"]
[TimeControl "40/5400+30:900+30"]

1. d4 {[%emt 0:00:00]} d6 {[%emt 0:00:00]} 2. Nf3 {[%emt 0:02:41]} g6 {[%emt 0:00:47]} 3. c4 {[%emt 0:00:18]} Bg7 {[%emt 0:00:02]} 4. Nc3 {[%emt 0:00:22]} Nf6 {[%emt 0:00:56]} 5. e4 {[%emt 0:00:07]} O-O {[%emt 0:00:13]} 6. Be2 {[%emt 0:00:04]} Na6 {[%emt 0:01:47]} 7. O-O {[%emt 0:00:06]} e5 {[%emt 0:00:09]} 8. dxe5 {[%emt 0:03:36]} dxe5 {[%emt 0:00:59]} 9. Be3 {[%emt 0:00:06]} Ng4 {[%emt 0:01:38]} 10. Qxd8 {[%emt 0:04:32]} Rxd8 {[%emt 0:00:08]} 11. Rad1 {[%emt 0:00:03]} Re8 {[%emt 0:08:59]} 12. Bc1 {[%emt 0:02:37]} c6 {[%emt 0:00:53]} 13. a3 {[%emt 0:08:16]} Nc5 {[%emt 0:06:46]} 14. b4 {[%emt 0:10:13]} Nb3 {[%emt 0:00:24]} 15. h3 {[%emt 0:18:35]} Nxc1 {[%emt 0:02:33]} 16. Rxc1 {[%emt 0:00:06]} Nf6 {[%emt 0:01:51]} 17. c5 {[%emt 0:07:37]} Nh5 {[%emt 0:20:02]} 18. Bc4 {[%emt 0:04:14]} h6 {[%emt 0:11:23]} 19. Nd2 {[%emt 0:04:07]} Nf4 {[%emt 0:00:11]} 20. Rfd1 {[%emt 0:01:16]} b6 {[%emt 0:12:38]} 21. b5 {[%emt 0:09:29]} Bb7 {[%emt 0:03:04]} 22. bxc6 {[%emt 0:01:57]} Bxc6 {[%emt 0:00:04]} 23. Nb5 {[%emt 0:02:08]} Bxb5 {[%emt 0:02:08]} 24. Bxb5 {[%emt 0:00:08]} Rec8 {[%emt 0:00:12]} 25. cxb6 {[%emt 0:03:10]} axb6 {[%emt 0:03:43]} 26. a4 {[%emt 0:00:25]} Bf8 {[%emt 0:11:49]} 27. Kf1 {[%emt 0:08:22]} Rxc1 {[%emt 0:02:13]} 28. Rxc1 {[%emt 0:00:03]} Bc5 {[%emt 0:00:50]} 29. Nb3 {[%emt 0:02:24]} Bb4 {[%emt 0:02:34]} 30. h4 {[%emt 0:01:51]} Ra7 {[%emt 0:00:39]} 31. Rc6 {[%emt 0:01:31]} Ba5 {[%emt 0:00:10]} 32. g3 {[%emt 0:00:54]} Nh5 {[%emt 0:00:19]} 33. Ke2 {[%emt 0:01:10]} Kg7 {[%emt 0:00:02]} 34. Kd3 {[%emt 0:01:26]} Nf6 {[%emt 0:00:01]} 35. Nxa5 {[%emt 0:00:47]} bxa5 {[%emt 0:00:01]} 36. Ra6 {[%emt 0:01:05]} Rc7 {[%emt 0:03:31]} 37. Rxa5 {[%emt 0:00:28]} Ng4 {[%emt 0:00:01]} 38. f4 {[%emt 0:01:05]} Nf2+ {[%emt 0:00:30]} 39. Ke3 {[%emt 0:00:22]} Ng4+ {[%emt 0:00:20]} 40. Kd3 {[%emt 0:00:00]} Nf2+ {[%emt 0:00:00]} 41. Ke3 {[%emt 0:07:28]} Ng4+ {[%emt 0:00:30]} 42. Ke2 {[%emt 0:02:52]} Rc2+ {[%emt 0:05:23]} 43. Kd3 {[%emt 0:00:50]} Rg2 {[%emt 0:00:02]} 44. fxe5 {[%emt 0:00:20]} Nxe5+ {[%emt 0:00:17]} 45. Kd4 {[%emt 0:00:34]} Nf3+ {[%emt 0:00:17]} 46. Ke3 {[%emt 0:01:23]} Nh2 {[%emt 0:01:28]} 47. Kf4 {[%emt 0:03:39]} h5 {[%emt 0:00:16]} 48. Ra7 {[%emt 0:01:03]} Ng4 {[%emt 0:00:14]} 49. e5 {[%emt 0:00:14]} Kh6 {[%emt 0:06:22]} 50. a5 {[%emt 0:02:30]} Rd2 {[%emt 0:05:22]} 51. a6 {[%emt 0:00:30]} Rd4+ {[%emt 0:00:06]} 52. Kf3 {[%emt 0:00:05]} Nxe5+ {[%emt 0:00:22]} 53. Ke2 {[%emt 0:00:58]} Rb4 {[%emt 0:01:52]} 54. Rb7 {[%emt 0:00:21]} Rb3 {[%emt 0:00:14]} 55. Ba4 {[%emt 0:00:47]} Ra3 {[%emt 0:00:10]} 56. Rb4 {[%emt 0:00:32]} Nc6 {[%emt 0:00:10]} 57. Bxc6 {[%emt 0:00:28]} Rxa6 {[%emt 0:00:01]} 58. Bb7 {[%emt 0:00:58]} Ra2+ {[%emt 0:00:24]} 59. Kf3 {[%emt 0:00:07]} Ra3+ {[%emt 0:00:47]} 60. Kf4 {[%emt 0:00:21]} f6 {[%emt 0:01:34]} 61. Rb6 {[%emt 0:00:59]} Ra4+ {[%emt 0:00:06]} 62. Kf3 {[%emt 0:00:07]} Ra3+ {[%emt 0:00:06]} 63. Kg2 {[%emt 0:00:34]} Ra2+ {[%emt 0:00:05]} 64. Kh3 {[%emt 0:00:26]} Rf2 {[%emt 0:00:02]} 65. Bg2 {[%emt 0:00:35]} Kg7 {[%emt 0:03:19]} 66. Kh2 {[%emt 0:00:17]} Ra2 {[%emt 0:00:07]} 67. Rb7+ {[%emt 0:00:09]} Kh6 {[%emt 0:00:02]} 68. Rb6 {[%emt 0:00:04]} Kg7 {[%emt 0:00:06]} 69. Rb4 {[%emt 0:00:31]} Kh6 {[%emt 0:00:09]} 70. Rf4 {[%emt 0:00:06]} Kg7 {[%emt 0:00:11]} 71. Kg1 {[%emt 0:00:25]} Ra1+ {[%emt 0:00:26]} 72. Bf1 {[%emt 0:01:36]} Ra2 {[%emt 0:01:00]} 73. Bc4 {[%emt 0:00:05]} Rc2 {[%emt 0:00:06]} 74. Kf1 {[%emt 0:00:24]} Rc3 {[%emt 0:00:59]} 75. Kf2 {[%emt 0:00:11]} Rc2+ {[%emt 0:00:08]} 76. Ke3 {[%emt 0:00:30]} Rc3+ {[%emt 0:00:20]} 77. Bd3 {[%emt 0:00:10]} Rc7 {[%emt 0:00:24]} 78. Rf3 {[%emt 0:01:23]} Re7+ {[%emt 0:00:19]} 79. Kd4 {[%emt 0:01:19]} Rd7+ {[%emt 0:00:15]} 80. Ke4 {[%emt 0:00:13]} Re7+ {[%emt 0:00:06]} 81. Kd5 {[%emt 0:00:45]} Re5+ {[%emt 0:00:40]} 82. Kd6 {[%emt 0:00:44]} Re1 {[%emt 0:00:10]} 83. Bc4 {[%emt 0:00:22]} Rd1+ {[%emt 0:00:57]} 84. Ke7 {[%emt 0:00:36]} Re1+ {[%emt 0:00:17]} 85. Kd6 {[%emt 0:00:30]} Rd1+ {[%emt 0:00:18]} 86. Bd5 {[%emt 0:00:26]} Ra1 {[%emt 0:00:27]} 87. Bb3 {[%emt 0:00:28]} Ra6+ {[%emt 0:00:15]} 88. Kd5 {[%emt 0:00:04]} Ra5+ {[%emt 0:00:06]} 89. Ke4 {[%emt 0:00:06]} Re5+ {[%emt 0:00:14]} 90. Kd4 {[%emt 0:00:13]} Re8 {[%emt 0:00:38]} 91. Rc3 {[%emt 0:00:16]} Rd8+ {[%emt 0:00:26]} 92. Ke4 {[%emt 0:00:08]} Re8+ {[%emt 0:00:09]} 93. Kf3 {[%emt 0:00:19]} Re7 {[%emt 0:00:09]} 94. Bc2 {[%emt 0:00:13]} Rd7 {[%emt 0:00:30]} 95. Rc4 {[%emt 0:00:12]} Kh6 {[%emt 0:01:20]} 96. Rf4 {[%emt 0:00:44]} Rd6 {[%emt 0:00:09]} 97. Ke3 {[%emt 0:03:00]} Re6+ {[%emt 0:00:18]} 98. Kf2 {[%emt 0:00:26]} Rc6 {[%emt 0:00:08]} 99. Bd1 {[%emt 0:00:13]} Rd6 {[%emt 0:00:08]} 100. Be2 {[%emt 0:00:08]} Re6 {[%emt 0:00:13]} 101. Rb4 {[%emt 0:00:40]} Re7 {[%emt 0:00:07]} 102. g4 {[%emt 0:00:38]} hxg4 {[%emt 0:00:07]} 103. Rxg4 {[%emt 0:00:04]} f5 {[%emt 0:00:56]} 104. Ra4 {[%emt 0:01:02]} Re4 {[%emt 0:01:00]} 105. Rxe4 {[%emt 0:00:51]} fxe4 106. Kg3 {[%emt 0:00:04]} g5 {[%emt 0:00:12]} 107. h5 {[%emt 0:00:08]} g4 {[%emt 0:00:14]} 108. Kxg4 {[%emt 0:00:22]} e3 {[%emt 0:00:11]} 109. Kf5 {[%emt 0:00:03]} Kg7 {[%emt 0:00:04]} 110. Kg5 {[%emt 0:00:03]} Kh7 {[%emt 0:00:06]} 111. h6 {[%emt 0:00:03]} Kh8 {[%emt 0:00:05]} 112. Kg6 {[%emt 0:00:04]} Kg8 {[%emt 0:00:05]} 113. h7+ {[%emt 0:00:05]} Kh8 {[%emt 0:00:03]} 114. Bc4 {[%emt 0:00:04]} e2 {[%emt 0:00:04]} 115. Bxe2 1/2-1/2

[Event "Szczawno Festival IM 2018"]
[Site "Szczawno"]
[Date "2018.12.18"]
[Round "5"]
[White "Fus, Jakub"]
[Black "Simantsev, Mikhail"]
[Result "1-0"]
[ECO "E17"]
[WhiteElo "2265"]
[BlackElo "2404"]
[Annotator "ChessBase"]
[PlyCount "61"]
[EventDate "2018.12.14"]
[EventType "tourn"]
[EventCountry "POL"]
[SourceTitle "playchess.com"]
[Source "ChessBase"]
[SourceQuality "1"]
[TimeControl "40/5400+30:900+30"]

1. d4 {[%emt 0:00:00]} Nf6 {[%emt 0:09:01]} 2. c4 {[%emt 0:00:00]} e6 {[%emt 0:01:16]} 3. Nf3 {[%emt 0:00:10]} b6 {[%emt 0:00:21]} 4. g3 {[%emt 0:00:21]} Bb7 {[%emt 0:02:22]} 5. Bg2 {[%emt 0:00:36]} Be7 {[%emt 0:00:18]} 6. O-O {[%emt 0:00:27]} O-O {[%emt 0:00:05]} 7. Re1 {[%emt 0:00:28]} Qc8 {[%emt 0:12:04]} 8. Nc3 {[%emt 0:02:00]} Ne4 {[%emt 0:06:31]} 9. Bd2 {[%emt 0:00:50]} d6 {[%emt 0:20:24]} 10. d5 {[%emt 0:03:03]} Nxd2 {[%emt 0:04:45]} 11. Nxd2 {[%emt 0:05:30]} e5 {[%emt 0:00:04]} 12. e4 {[%emt 0:00:36]} Nd7 {[%emt 0:00:22]} 13. Qc2 {[%emt 0:01:22]} Bg5 {[%emt 0:05:48]} 14. b4 {[%emt 0:03:46]} g6 {[%emt 0:03:54]} 15. h4 {[%emt 0:01:47]} Bh6 {[%emt 0:03:21]} 16. Bh3 {[%emt 0:00:16]} Qd8 {[%emt 0:00:42]} 17. Nb3 {[%emt 0:06:21]} Bc8 {[%emt 0:01:12]} 18. a4 {[%emt 0:17:04]} Nf6 {[%emt 0:05:54]} 19. Bg2 {[%emt 0:00:57]} Ng4 {[%emt 0:02:18]} 20. c5 {[%emt 0:04:07]} bxc5 {[%emt 0:02:09]} 21. bxc5 {[%emt 0:00:10]} f5 {[%emt 0:00:18]} 22. exf5 {[%emt 0:11:37]} Bxf5 {[%emt 0:06:21]} 23. Qe2 {[%emt 0:06:17]} Rb8 {[%emt 0:03:58]} 24. Na5 {[%emt 0:00:14]} Qd7 {[%emt 0:02:04]} 25. Ra2 {[%emt 0:06:50]} Rbe8 {[%emt 0:03:04]} 26. Ne4 {[%emt 0:08:15]} Rb8 {[%emt 0:02:37]} 27. Nc6 {[%emt 0:02:10]} Rb3 {[%emt 0:01:05]} 28. Qc4 {[%emt 0:01:01]} Rb7 {[%emt 0:00:06]} 29. a5 {[%emt 0:03:06]} Bxe4 {[%emt 0:01:29]} 30. Qxe4 {[%emt 0:01:14]} Qf5 {[%emt 0:00:32]} 31. Ne7+ {[%emt 0:00:05]} 1-0

[Event "Szczawno Festival IM 2018"]
[Site "Szczawno"]
[Date "2018.12.19"]
[Round "6"]
[White "Simantsev, Mikhail"]
[Black "Sliwicka, Alicja"]
[Result "1/2-1/2"]
[ECO "D20"]
[WhiteElo "2404"]
[BlackElo "2236"]
[Annotator "ChessBase"]
[PlyCount "119"]
[EventDate "2018.12.14"]
[EventType "tourn"]
[EventCountry "POL"]
[SourceTitle "playchess.com"]
[Source "ChessBase"]
[SourceQuality "1"]
[TimeControl "40/5400+30:900+30"]

1. d4 {[%emt 0:16:11]} d5 {[%emt 0:00:00]} 2. c4 {[%emt 0:00:35]} dxc4 {[%emt 0:00:00]} 3. e4 {[%emt 0:01:11]} c5 {[%emt 0:00:00]} 4. d5 {[%emt 0:00:19]} Nf6 {[%emt 0:00:00]} 5. Nc3 {[%emt 0:01:21]} b5 {[%emt 0:00:00]} 6. Bf4 {[%emt 0:00:52]} Qa5 {[%emt 0:00:12]} 7. f3 {[%emt 0:17:07]} Na6 {[%emt 0:38:14]} 8. a4 {[%emt 0:08:35]} b4 {[%emt 0:02:50]} 9. Nb5 {[%emt 0:03:29]} g5 {[%emt 0:08:17]} 10. Be5 {[%emt 0:09:08]} Rg8 {[%emt 0:02:48]} 11. Bxf6 {[%emt 0:06:53]} exf6 {[%emt 0:00:11]} 12. Bxc4 {[%emt 0:00:08]} Nc7 {[%emt 0:12:48]} 13. Ne2 {[%emt 0:18:23]} a6 {[%emt 0:01:14]} 14. d6 {[%emt 0:04:16]} axb5 {[%emt 0:03:02]} 15. dxc7 {[%emt 0:02:56]} Qxc7 {[%emt 0:00:35]} 16. Qd5 {[%emt 0:03:10]} Ra7 {[%emt 0:02:12]} 17. Bxb5+ {[%emt 0:00:08]} Bd7 {[%emt 0:00:30]} 18. Bc4 {[%emt 0:00:33]} Be6 {[%emt 0:00:43]} 19. Bb5+ {[%emt 0:00:01]} Bd7 {[%emt 0:00:34]} 20. O-O {[%emt 0:00:18]} Bd6 {[%emt 0:01:30]} 21. Bxd7+ {[%emt 0:01:42]} Qxd7 {[%emt 0:00:28]} 22. Rfd1 {[%emt 0:00:30]} Ke7 {[%emt 0:03:15]} 23. e5 {[%emt 0:02:18]} fxe5 {[%emt 0:00:52]} 24. Ng3 {[%emt 0:00:00]} Rg6 {[%emt 0:01:19]} 25. b3 {[%emt 0:00:56]} Rc7 {[%emt 0:05:02]} 26. Qc4 {[%emt 0:01:06]} g4 {[%emt 0:02:19]} 27. Kh1 {[%emt 0:00:49]} gxf3 {[%emt 0:00:35]} 28. gxf3 {[%emt 0:00:16]} Qh3 {[%emt 0:00:50]} 29. Rg1 {[%emt 0:00:23]} Rh6 {[%emt 0:01:12]} 30. Rg2 {[%emt 0:00:13]} Rf6 {[%emt 0:01:41]} 31. Rd1 Qe6 {[%emt 0:02:35]} 32. Rd5 {[%emt 0:01:34]} Rxf3 {[%emt 0:01:47]} 33. Rgd2 {[%emt 0:00:32]} Rd7 {[%emt 0:02:03]} 34. Qh4+ {[%emt 0:00:20]} Qf6 {[%emt 0:01:14]} 35. Qxf6+ {[%emt 0:00:28]} Rxf6 {[%emt 0:00:35]} 36. Ne4 {[%emt 0:00:04]} Rg6 {[%emt 0:00:24]} 37. h3 {[%emt 0:01:07]} f5 {[%emt 0:00:55]} 38. Nxd6 {[%emt 0:00:31]} Rgxd6 {[%emt 0:00:48]} 39. Rxe5+ {[%emt 0:00:07]} Kf6 {[%emt 0:00:13]} 40. Rxd6+ {[%emt 0:00:00]} Rxd6 {[%emt 0:00:00]} 41. Rxc5 {[%emt 0:00:22]} Rd3 {[%emt 0:00:43]} 42. Kg2 {[%emt 0:04:21]} Rxb3 {[%emt 0:00:19]} 43. Rb5 {[%emt 0:01:30]} Kg5 {[%emt 0:01:11]} 44. a5 {[%emt 0:01:05]} Rb2+ {[%emt 0:01:37]} 45. Kg3 {[%emt 0:01:12]} Rb3+ {[%emt 0:00:15]} 46. Kg2 {[%emt 0:00:13]} Ra3 {[%emt 0:03:37]} 47. Rxb4 {[%emt 0:02:49]} Rxa5 {[%emt 0:00:05]} 48. h4+ {[%emt 0:02:05]} Kh5 {[%emt 0:00:28]} 49. Kg3 {[%emt 0:00:11]} Ra1 {[%emt 0:01:00]} 50. Rb5 {[%emt 0:00:37]} Ra3+ {[%emt 0:01:51]} 51. Kf4 {[%emt 0:00:34]} Kxh4 {[%emt 0:02:06]} 52. Rxf5 {[%emt 0:00:43]} Ra1 {[%emt 0:01:17]} 53. Ke3 {[%emt 0:00:12]} Kg4 {[%emt 0:00:31]} 54. Rf7 {[%emt 0:00:11]} h5 {[%emt 0:00:15]} 55. Kf2 {[%emt 0:00:07]} h4 {[%emt 0:00:33]} 56. Kg2 {[%emt 0:00:36]} Ra2+ {[%emt 0:00:15]} 57. Rf2 {[%emt 0:01:08]} h3+ {[%emt 0:00:48]} 58. Kg1 {[%emt 0:00:10]} h2+ {[%emt 0:01:21]} 59. Rxh2 {[%emt 0:00:02]} Rxh2 {[%emt 0:00:06]} 60. Kxh2 {[%emt 0:00:01]} 1/2-1/2